fUSD/lending_fUSD_20251221
["ID","MTS","AMOUNT","RATE_DAILY","PERIOD"]
[399326760,1766305842574,-150.0,0.00015288,2]
[399326761,1766305842583,-150.0,0.00015288,2]
[399326762,1766305842593,-150.0,0.00015288,2]
[399326763,1766305842602,-150.0,0.00015288,2]
[399326764,1766305842612,-150.0,0.00015288,2]
[399326765,1766305842621,-150.0,0.00015288,2]
[399326766,1766305842630,-150.0,0.00015288,2]
[399326767,1766305842639,-150.0,0.00015288,2]
[399326769,1766305842648,-150.89972091,0.00015288,2]
[399326771,1766305842658,-150.0,0.00015288,2]
[399326772,1766305842668,-150.0,0.00015288,2]
[399326773,1766305842677,-150.0,0.00015288,2]
[399326774,1766305842687,-500.0,0.00015309,2]
[399326775,1766305842696,-150.0,0.00015324,2]
[399326776,1766305842707,-150.0,0.00015328,2]
[399326777,1766305842716,-150.0,0.00015336,2]
[399326779,1766305842725,-150.0,0.00015348,2]
[399326781,1766305842734,-150.0,0.00015358,2]
[399326783,1766305842743,-150.0,0.0001536,2]
[399326784,1766305842752,-150.0,0.00015369,2]
[399326785,1766305842762,-150.0,0.00015369,2]
[399326786,1766305842771,-150.0,0.00015373,2]
[399326787,1766305842781,-150.0,0.00015385,2]
[399326788,1766305842790,-150.0,0.00015396,2]
[399326789,1766305842800,-505.85702931,0.000154,2]
[399326790,1766305842810,-150.0,0.00015409,2]
[399326791,1766305842819,-150.0,0.00015409,2]
[399326793,1766305842829,-150.0,0.00015429,2]
[399326795,1766305842838,-150.0,0.00015432,2]
[399326797,1766305842847,-150.0,0.00015433,2]
[399326799,1766305842857,-150.0,0.00015449,2]
[399326800,1766305842867,-150.0,0.00015449,2]
[399326801,1766305842876,-150.0,0.00015458,2]
[399326802,1766305842885,-1176.54,0.00015464,2]
[399326803,1766305842895,-2500.0,0.00015464,2]
[399326805,1766305842904,-2401.46027499,0.00015464,2]
[399326806,1766305842913,-2454.77156402,0.00015464,2]
[399326807,1766305842923,-2500.0,0.00015464,2]
[399326808,1766305842932,-150.0,0.00015468,2]
[399326809,1766305842941,-150.0,0.0001547,2]
[399326810,1766305842951,-150.0,0.00015482,2]
[399326811,1766305842960,-587.0,0.00015485,2]
[399326812,1766305842970,-150.0,0.0001549,2]
[399326813,1766305842979,-6393.0,0.00015492,2]
[399326814,1766305842989,-150.0,0.000155,2]
[399326815,1766305842998,-150.0,0.00015505,2]
[399326816,1766305843007,-150.0,0.0001553,2]
[399326817,1766305843016,-150.0,0.0001553,2]
[399326818,1766305843026,-150.0,0.0001553,2]
[399326819,1766305843035,-150.0,0.0001553,2]
[399326820,1766305843044,-150.0,0.0001553,2]
[399326821,1766305843054,-150.0,0.00015541,2]
[399326822,1766305843063,-150.0,0.00015542,2]
[399326823,1766305843072,-150.0,0.00015571,2]
[399326824,1766305843081,-150.0,0.00015571,2]
[399326825,1766305843090,-150.0,0.00015571,2]
[399326826,1766305843099,-150.0,0.00015571,2]
[399326827,1766305843109,-2351.0,0.00015575,2]
[399326828,1766305843119,-150.0,0.00015577,2]
[399326829,1766305843128,-150.0,0.00015579,2]
[399326830,1766305843138,-150.0,0.00015591,2]
[399326831,1766305843148,-1289.1143188,0.00015591,2]
[399326832,1766305843157,-21061.21338741,0.00015591,2]
[399326833,1766305843167,-150.0,0.00015611,2]
[399326834,1766305843176,-150.0,0.00015611,2]
[399326835,1766305843186,-150.0,0.00015613,2]
[399326836,1766305843197,-166.66,0.00015618,2]
[399326837,1766305843207,-150.0,0.00015627,2]
[399326838,1766305843216,-150.0,0.00015627,2]
[399326839,1766305843225,-150.0,0.00015642,2]
[399326840,1766305843235,-150.0,0.00015649,2]
[399326841,1766305843244,-150.0,0.00015652,2]
[399326842,1766305843253,-150.0,0.00015652,2]
[399326843,1766305843263,-247.87796896,0.00015664,2]
[399326844,1766305843276,-574.12855637,0.00015664,2]
[399326845,1766305843285,-150.0,0.00015676,2]
[399326846,1766305843294,-150.0,0.00015685,2]
[399326847,1766305843305,-150.0,0.00015692,2]
[399326848,1766305843315,-150.0,0.00015692,2]
[399326849,1766305843324,-150.0,0.00015712,2]
[399326850,1766305843333,-150.0,0.00015712,2]
[399326851,1766305843342,-150.0,0.00015712,2]
[399326852,1766305843352,-150.0,0.00015712,2]
[399326853,1766305843362,-448.45149999,0.00015718,2]
[399326854,1766305843371,-575.35496106,0.00015718,2]
[399326855,1766305843380,-150.0,0.00015721,2]
[399326856,1766305843389,-150.0,0.00015724,2]
[399326857,1766305843399,-150.0,0.00015733,2]
[399326858,1766305843409,-1176.54,0.00015738,2]
[399326859,1766305843418,-150.0,0.00015758,2]
[399326860,1766305843427,-150.0,0.00015773,2]
[399326861,1766305843436,-150.0,0.00015773,2]
[399326862,1766305843446,-150.0,0.00015773,2]
[399326863,1766305843455,-150.0,0.00015773,2]
[399326864,1766305843464,-150.0,0.00015773,2]
[399326865,1766305843473,-630.49739482,0.00015778,2]
[399326866,1766305843483,-150.0,0.00015783,2]
[399326867,1766305843492,-150.0,0.00015794,2]
[399326868,1766305843501,-150.0,0.00015797,2]
[399326869,1766305843510,-2228.99632343,0.00015807,2]
[399326870,1766305843519,-150.0,0.00015813,2]
[399326871,1766305843528,-150.0,0.00015822,2]
[399326872,1766305843538,-150.0,0.0001583,2]
[399326873,1766305843547,-150.0,0.00015834,2]
[399326874,1766305843556,-518.0,0.00015834,2]
[399326875,1766305843567,-1262.0,0.00015834,2]
[399326876,1766305843576,-927.291,0.00015834,2]
[399326877,1766305843585,-1197.0,0.00015834,2]
[399326878,1766305843594,-3456.0,0.00015834,2]
[399326879,1766305843603,-1326.0,0.00015834,2]
[399326880,1766305843612,-1629.451,0.00015834,2]
[399326881,1766305843621,-150.0,0.00015854,2]
[399326882,1766305843630,-150.0,0.00015854,2]
[399326883,1766305843639,-150.0,0.00015854,2]
[399326884,1766305843647,-150.0,0.00015854,2]
[399326885,1766305843656,-150.0,0.00015854,2]
[399326886,1766305843666,-150.0,0.00015866,2]
[399326887,1766305843675,-150.0,0.0001587,2]
[399326888,1766305843684,-150.0,0.00015882,2]
[399326889,1766305843693,-150.0,0.00015894,2]
[399326890,1766305843703,-150.0,0.00015894,2]
[399326891,1766305843712,-150.0,0.00015902,2]
[399326892,1766305843721,-150.0,0.00015919,2]
[399326893,1766305843731,-150.0,0.00015925,2]
[399326894,1766305843739,-150.0,0.00015935,2]
[399326895,1766305843749,-150.0,0.00015935,2]
[399326896,1766305843758,-150.0,0.00015938,2]
[399326897,1766305843768,-150.0,0.00015955,2]
[399326898,1766305843777,-150.0,0.00015967,2]
[399326899,1766305843786,-150.0,0.00015967,2]
[399326900,1766305843795,-500.0,0.00015972,2]
[399326901,1766305843804,-500.55342912,0.00015973,2]
[399326902,1766305843814,-500.51801303,0.00015973,2]
[399326903,1766305843823,-570.29356194,0.00015973,2]
[399326904,1766305843832,-162.2682575,0.00015973,2]
[399326905,1766305843841,-500.0,0.00015973,2]
[399326906,1766305843850,-500.88956143,0.00015973,2]
[399326907,1766305843859,-500.82535785,0.00015973,2]
[399326908,1766305843869,-501.04177666,0.00015973,2]
[399326909,1766305843878,-162.38378184,0.00015973,2]
[399326910,1766305843887,-500.96497505,0.00015973,2]
[399326911,1766305843897,-501.02237634,0.00015973,2]
[399326912,1766305843906,-500.0,0.00015973,2]
[399326913,1766305843915,-500.30670484,0.00015973,2]
[399326914,1766305843924,-168.18676432,0.00015973,2]
[399326915,1766305843933,-500.34372301,0.00015973,2]
[399326916,1766305843942,-501.03374928,0.00015973,2]
[399326917,1766305843951,-500.95609969,0.00015973,2]
[399326918,1766305843960,-518.86476464,0.00015973,2]
[399326919,1766305843969,-334.60508476,0.00015973,2]
[399326920,1766305843978,-503.05961393,0.00015973,2]
[399326921,1766305843987,-330.74959628,0.00015973,2]
[399326922,1766305843996,-500.47443561,0.00015973,2]
[399326923,1766305844005,-500.94315353,0.00015973,2]
[399326924,1766305844014,-150.17482874,0.00015973,2]
[399326925,1766305844023,-500.56420784,0.00015973,2]
[399326926,1766305844033,-452.23233136,0.00015973,2]
[399326927,1766305844042,-590.29428357,0.00015973,2]
[399326928,1766305844051,-500.35420058,0.00015973,2]
[399326929,1766305844059,-333.50168371,0.00015973,2]
[399326930,1766305844068,-160.18741035,0.00015973,2]
[399326931,1766305844077,-160.18740865,0.00015973,2]
[399326932,1766305844086,-160.18648371,0.00015973,2]
[399326933,1766305844095,-500.86854265,0.00015973,2]
[399326934,1766305844104,-160.176,0.00015973,2]
[399326935,1766305844114,-177.38138354,0.00015973,2]
[399326936,1766305844123,-500.67170266,0.00015973,2]
[399326937,1766305844132,-160.18741035,0.00015973,2]
[399326938,1766305844141,-160.18740865,0.00015973,2]
[399326939,1766305844150,-500.8679768,0.00015973,2]
[399326940,1766305844159,-160.18740865,0.00015973,2]
[399326941,1766305844168,-500.4654119,0.00015973,2]
[399326942,1766305844178,-160.18818998,0.00015973,2]
[399326943,1766305844187,-500.65341776,0.00015973,2]
[399326944,1766305844202,-502.67024509,0.00015973,2]
[399326945,1766305844213,-500.90575555,0.00015973,2]
[399326946,1766305844222,-501.49447409,0.00015973,2]
[399326947,1766305844232,-160.18740865,0.00015973,2]
[399326948,1766305844242,-555.97636192,0.00015973,2]
[399326949,1766305844251,-501.73374202,0.00015973,2]
[399326950,1766305844260,-501.15885684,0.00015973,2]
[399326951,1766305844271,-500.61743436,0.00015973,2]
[399326952,1766305844280,-501.07980715,0.00015973,2]
[399326953,1766305844289,-160.18740865,0.00015973,2]
[399326954,1766305844299,-500.52093975,0.00015973,2]
[399326955,1766305844308,-577.42409755,0.00015973,2]
[399326956,1766305844318,-500.77244015,0.00015973,2]
[399326957,1766305844327,-160.18648397,0.00015973,2]
[399326958,1766305844336,-160.18741035,0.00015973,2]
[399326959,1766305844346,-160.18648397,0.00015973,2]
[399326960,1766305844355,-160.18740865,0.00015973,2]
[399326961,1766305844364,-426.64941198,0.00015973,2]
[399326962,1766305844374,-160.18546537,0.00015973,2]
[399326963,1766305844383,-160.18740865,0.00015973,2]
[399326964,1766305844392,-160.18740865,0.00015973,2]
[399326965,1766305844401,-160.18740865,0.00015973,2]
[399326966,1766305844411,-160.18819168,0.00015973,2]
[399326967,1766305844419,-160.18740865,0.00015973,2]
[399326968,1766305844429,-160.18741035,0.00015973,2]
[399326969,1766305844438,-168.59717172,0.00015973,2]
[399326970,1766305844447,-500.0,0.00015973,2]
[399326971,1766305844456,-543.24024385,0.00015973,2]
[399326972,1766305844465,-370.53527967,0.00015973,2]
[399326973,1766305844474,-530.05316157,0.00015973,2]
[399326974,1766305844483,-501.45767981,0.00015973,2]
[399326975,1766305844492,-500.92329476,0.00015973,2]
[399326976,1766305844501,-500.69834491,0.00015973,2]
[399326977,1766305844510,-505.23381975,0.00015973,2]
[399326978,1766305844519,-501.99692439,0.00015973,2]
[399326979,1766305844528,-500.61638625,0.00015973,2]
[399326980,1766305844537,-150.0,0.00015974,2]
[399326981,1766305844546,-150.0,0.00015975,2]
[399326982,1766305844555,-210.79,0.00015989,2]
[399326983,1766305844564,-150.0,0.00015995,2]
[399326984,1766305844573,-1543362.97319442,0.00016,4]
[399326985,1766305844590,-16015.57037135,0.00016,4]
[399326986,1766305844601,-420.26474166,0.00016,4]
[399326987,1766305844753,-382.77690906,0.00015834,2]
[399326988,1766305844764,-232.46809094,0.00015834,2]
[399326989,1766305844774,-33.80969266,0.00016,4]
[399326990,1766305844871,-972.22800536,0.00016,4]
[399327222,1766307031905,-366.47,0.00012615,2]
[399327223,1766307031914,-217.0,0.00012764,2]
[399327224,1766307031924,-65.36142885,0.00012764,2]
[399327225,1766307031960,-1134.63857115,0.00012764,2]
[399327226,1766307031971,-13234.07882907,0.00012765,2]
[399327227,1766307031982,-213.27279279,0.00012771,2]
[399327228,1766307031991,-465.22623339,0.00012771,2]
[399327229,1766307032001,-178.86329488,0.00012771,2]
[399327230,1766307032010,-500.0,0.00012771,2]
[399327231,1766307032020,-500.0,0.00012771,2]
[399327232,1766307032029,-381.81683641,0.00012771,2]
[399327233,1766307032042,-60943.82350382,0.00012772,2]
[399327234,1766307032055,-853.06165973,0.00012772,2]
[399327235,1766307032069,-889.22490028,0.00012772,2]
[399327236,1766307032086,-8358.6192992,0.00012772,2]
[399327237,1766307032097,-488.41,0.00012772,2]
[399327238,1766307032108,-1617.34995375,0.00012772,2]
[399327239,1766307032120,-529.74179822,0.00012772,2]
[399327240,1766307032131,-974.05877356,0.00012772,2]
[399327241,1766307032143,-345.89931733,0.00012772,2]
[399327242,1766307032157,-4521.82518692,0.00012772,2]
[399327243,1766307032168,-91661.12775878,0.00012772,2]
[399327244,1766307032181,-98833.77168504,0.00012772,2]
[399327245,1766307032192,-2430.83962756,0.00012772,2]
[399327250,1766307038074,-2663.93169054,0.00012772,2]
[399327251,1766307038091,-44314.00000001,0.00012772,2]
[399327257,1766307040221,-590.29279112,0.00012772,2]
[399327258,1766307040238,-1579.30044616,0.00012772,2]
[399327259,1766307040253,-443.54392072,0.00012772,2]
[399327260,1766307040269,-1069.814999,0.00012772,2]
[399327261,1766307040285,-3889.325472,0.00012772,2]
[399327288,1766307043148,-7703.06217246,0.00012772,2]
[399327289,1766307043515,-445.94917799,0.00012772,2]
[399327290,1766307043607,-2617.51112008,0.00012772,2]
[399327291,1766307043695,-16530.25118,0.00012772,2]
[399327295,1766307043830,-273982.84217103,0.00012772,2]
[399327296,1766307043845,-758.14934782,0.00012772,2]
[399327300,1766307046465,-1812.41144892,0.00012772,2]
[399327301,1766307046476,-1404.55695213,0.00012772,2]
[399327302,1766307046487,-41139.22534713,0.00012772,2]
[399327303,1766307046498,-250.26384982,0.00012772,2]
[399327304,1766307046542,-432.322427,0.00012772,2]
[399327305,1766307046552,-552.50777103,0.00012772,2]
[399330134,1766307450482,500.0,0.000176,30]
[399330273,1766308147097,240.85913806,0.000226,120]
[399330282,1766308232171,-206.7630029,0.00012508,2]
[399330283,1766308232180,-58.42747826,0.00012663,2]
[399330284,1766308232278,-241.57252174,0.00012663,2]
[399330285,1766308232288,-150.0,0.00012663,2]
[399330286,1766308232299,-300.0,0.00012663,2]
[399330287,1766308232308,-1200.0,0.00012663,2]
[399330288,1766308232317,-265.0,0.00012663,2]
[399330289,1766308232326,-6318.36401625,0.00012664,2]
[399330290,1766308232335,-8831.02318953,0.00012664,2]
[399330308,1766308238158,-3341.5178174,0.00012664,2]
[399330309,1766308238168,-368.3183768,0.00012664,2]
[399330310,1766308238177,-325.65836338,0.00012671,2]
[399330311,1766308238187,-153.53520405,0.00012671,2]
[399330312,1766308238196,-1000.0,0.00012672,2]
[399330313,1766308238206,-1635.71111792,0.00012672,2]
[399330315,1766308240202,-3191.03918178,0.00012672,2]
[399330316,1766308240214,-2700.0,0.00012672,2]
[399330318,1766308240414,-3608.27472446,0.00012672,2]
[399330319,1766308240425,-421.53282289,0.00012672,2]
[399330320,1766308240471,-12382.28841856,0.00012672,2]
[399330321,1766308240482,-1275.68569252,0.00012672,2]
[399330332,1766308243405,-1844.40697459,0.00012672,2]
[399330333,1766308243459,-6900.0,0.00012672,2]
[399330334,1766308243470,-1796.40608397,0.00012672,2]
[399330335,1766308243516,-1134.51786749,0.00012672,2]
[399330336,1766308243527,-1415.29472217,0.00012672,2]
[399330338,1766308243538,-289.78692413,0.00012672,2]
[399330355,1766308247544,-993.0,0.00012672,2]
[399330356,1766308247555,-4330.03520605,0.00012672,2]
[399330357,1766308247566,-753.01482349,0.00012672,2]
[399330358,1766308247581,-4616.36110388,0.00012672,2]
[399330359,1766308247592,-651.4799978,0.00012672,2]
[399330360,1766308247610,-2332.25914526,0.00012672,2]
[399330361,1766308247620,-1399.79386997,0.00012672,2]
[399330372,1766308371350,321.01,4.3e-06,120]
[399330373,1766308372834,321.01,3.44e-06,30]
[399330374,1766308372883,321.01,2.58e-06,2]
[399330375,1766308372928,321.01,1.73e-06,2]
[399330376,1766308373054,321.01,8.7e-07,2]
[399330514,1766309432880,-999.0,0.00012157,2]
[399330515,1766309432892,-1.0,0.00012157,2]
[399330516,1766309432901,-150.0,0.00012209,2]
[399330517,1766309432911,-223.98456841,0.00012404,2]
[399330518,1766309432920,-75.74437591,0.00012471,2]
[399330519,1766309432932,-1124.25562409,0.00012471,2]
[399330520,1766309432941,-3267.00684295,0.00012472,2]
[399330521,1766309432952,-2419.52077172,0.00012472,2]
[399330522,1766309432961,-315.70146588,0.00012472,2]
[399330523,1766309432971,-241.33722068,0.00012472,2]
[399330524,1766309432980,-157.62434874,0.00012472,2]
[399330525,1766309432991,-3391.05,0.00012534,2]
[399330526,1766309433000,-200.0,0.00012546,2]
[399330527,1766309433009,-200.0,0.00012546,2]
[399330528,1766309433019,-500.0,0.00012546,2]
[399330529,1766309433029,-150.0,0.00012552,2]
[399330530,1766309433038,-377.96085436,0.00012553,2]
[399330531,1766309433048,-500.0,0.00012553,2]
[399330532,1766309433058,-500.0,0.00012553,2]
[399330533,1766309433068,-500.0,0.00012553,2]
[399330534,1766309433077,-500.0,0.00012553,2]
[399330535,1766309433089,-500.0,0.00012553,2]
[399330536,1766309433099,-399.6466509,0.00012553,2]
[399330537,1766309433108,-500.0,0.00012553,2]
[399330538,1766309433118,-500.0,0.00012553,2]
[399330539,1766309433128,-500.0,0.00012553,2]
[399330540,1766309433138,-500.0,0.00012553,2]
[399330541,1766309433147,-500.0,0.00012553,2]
[399330542,1766309433158,-500.0,0.00012553,2]
[399330543,1766309433173,-500.0,0.00012553,2]
[399330544,1766309433186,-500.0,0.00012553,2]
[399330545,1766309433195,-1897.03038776,0.00012554,2]
[399330546,1766309433207,-13508.11678755,0.00012554,2]
[399330547,1766309433222,-11188.45308233,0.00012554,2]
[399330548,1766309438392,-964.0942,0.00012554,2]
[399330549,1766309438405,-972442.30554236,0.00012554,2]
[399330550,1766309438415,-1000.0,0.00012572,2]
[399330551,1766309438426,-785.27934827,0.00012624,2]
[399330552,1766309438436,-1124.5,0.00012671,2]
[399330553,1766309438445,-1613.51050253,0.00012672,2]
[399330554,1766309438455,-293.176,0.00012672,2]
[399330555,1766309438464,-4398.8090597,0.00012754,2]
[399330556,1766309438474,-58492.4948485,0.00012754,2]
[399330557,1766309438483,-2212.8347986,0.00012754,2]
[399330558,1766309438493,-7790.9523946,0.00012754,2]
[399330559,1766309438502,-8087.7522432,0.00012754,2]
[399330560,1766309438511,-216.96467789,0.00012772,2]
[399330561,1766309438520,-151.0,0.00012772,2]
[399330562,1766309438530,-245.98676341,0.00012896,2]
[399330563,1766309438539,-664.0,0.0001291,2]
[399330564,1766309438549,-1150.84,0.00012911,2]
[399330565,1766309438559,-1124.5,0.00012945,2]
[399330566,1766309438568,-5686.52761459,0.00012964,2]
[399330567,1766309438582,-200.0,0.00012965,2]
[399330568,1766309438591,-993.0,0.00012969,2]
[399330569,1766309438600,-999.0,0.0001297,3]
[399330570,1766309438609,-1209.0,0.00012981,2]
[399330571,1766309438618,-60814.35216523,0.0001299,2]
[399330572,1766309438627,-892.0,0.00012991,2]
[399330573,1766309438636,-339.0,0.00013007,2]
[399330574,1766309438645,-200.0,0.00013094,2]
[399330575,1766309438655,-200.0,0.00013094,2]
[399330576,1766309438664,-500.0,0.00013094,2]
[399330577,1766309438673,-157.6243487,0.00013105,2]
[399330578,1766309438682,-150.0,0.0001315,2]
[399330579,1766309438691,-500.0,0.00013205,2]
[399330580,1766309438700,-315.70146582,0.0001321,2]
[399330581,1766309438710,-166.66,0.00013219,2]
[399330582,1766309438719,-1124.5,0.00013219,2]
[399330584,1766309438728,-169.30599703,0.00013273,2]
[399330585,1766309438737,-500.0,0.00013273,2]
[399330586,1766309438746,-500.0,0.00013273,2]
[399330587,1766309438756,-501.13880069,0.00013273,2]
[399330588,1766309438765,-500.0,0.00013273,2]
[399330589,1766309438774,-176.68955298,0.00013273,2]
[399330590,1766309438783,-500.28275711,0.00013273,2]
[399330591,1766309438792,-500.0,0.00013273,2]
[399330592,1766309438802,-172.78810174,0.00013273,2]
[399330593,1766309438814,-500.0,0.00013273,2]
[399330594,1766309438823,-165.55250469,0.00013273,2]
[399330595,1766309438832,-163.74041745,0.00013273,2]
[399330596,1766309438841,-500.0,0.00013273,2]
[399330597,1766309438850,-500.0,0.00013273,2]
[399330598,1766309438859,-166.07222089,0.00013273,2]
[399330599,1766309438869,-224.07561459,0.00013273,2]
[399330600,1766309438878,-500.0,0.00013273,2]
[399330601,1766309438887,-500.0,0.00013273,2]
[399330602,1766309438896,-500.47389711,0.00013273,2]
[399330603,1766309438905,-276.49556074,0.00013273,2]
[399330604,1766309438915,-500.0,0.00013273,2]
[399330605,1766309438924,-535.80488435,0.00013273,2]
[399330606,1766309438933,-500.0,0.00013273,2]
[399330607,1766309438942,-500.0,0.00013273,2]
[399330608,1766309438952,-536.20400277,0.00013273,2]
[399330609,1766309438961,-500.0,0.00013273,2]
[399330610,1766309438970,-160.24966058,0.00013273,2]
[399330611,1766309438980,-500.0,0.00013273,2]
[399330612,1766309438989,-500.0,0.00013273,2]
[399330613,1766309438998,-500.0,0.00013273,2]
[399330614,1766309439008,-165.47156837,0.00013273,2]
[399330615,1766309439017,-500.0,0.00013273,2]
[399330616,1766309439026,-502.09932593,0.00013273,2]
[399330617,1766309439035,-366.15226393,0.00013273,2]
[399330618,1766309439045,-500.0,0.00013273,2]
[399330619,1766309439055,-172.89827742,0.00013273,2]
[399330620,1766309439064,-500.0,0.00013273,2]
[399330621,1766309439073,-427.77959939,0.00013361,2]
[399330622,1766309439083,-5329.01,0.00013371,2]
[399330623,1766309439093,-300.0,0.00013372,2]
[399330624,1766309439102,-250.0,0.00013372,2]
[399330625,1766309439112,-5686.52761459,0.00013456,2]
[399330626,1766309439121,-1124.5,0.00013493,2]
[399330627,1766309439131,-1000.0,0.000135,2]
[399330628,1766309439140,-500.0,0.00013576,2]
[399330629,1766309439149,-2068.87,0.00013621,2]
[399330630,1766309439159,-255.0,0.00013644,2]
[399330631,1766309439168,-261.824715,0.00013673,2]
[399330632,1766309439178,-1000.0,0.00013676,2]
[399330633,1766309439187,-500.0,0.00013698,2]
[399330634,1766309439196,-500.0,0.00013698,2]
[399330635,1766309439209,-462.52746039,0.00013698,2]
[399330636,1766309439219,-500.0,0.00013698,2]
[399330637,1766309439227,-500.0,0.00013698,2]
[399330638,1766309439237,-500.0,0.00013698,2]
[399330639,1766309439246,-500.0,0.00013698,2]
[399330640,1766309439256,-500.0,0.00013698,2]
[399330641,1766309439266,-500.0,0.00013698,2]
[399330642,1766309439276,-500.0,0.00013698,2]
[399330643,1766309439295,-500.0,0.00013698,2]
[399330644,1766309439305,-500.0,0.00013698,2]
[399330645,1766309439315,-500.0,0.00013698,2]
[399330646,1766309439325,-344.15406571,0.00013698,2]
[399330647,1766309439334,-500.0,0.00013698,2]
[399330648,1766309439343,-500.0,0.00013698,2]
[399330649,1766309439352,-500.0,0.00013698,2]
[399330650,1766309439362,-500.0,0.00013698,2]
[399330651,1766309439372,-500.0,0.00013698,2]
[399330652,1766309439381,-500.0,0.00013698,2]
[399330653,1766309439391,-500.0,0.00013698,2]
[399330654,1766309439400,-500.0,0.00013698,2]
[399330655,1766309439409,-500.0,0.00013698,2]
[399330656,1766309439419,-500.0,0.00013698,2]
[399330657,1766309439428,-500.0,0.00013698,2]
[399330658,1766309439437,-500.0,0.00013698,2]
[399330659,1766309439446,-500.0,0.00013698,2]
[399330660,1766309439456,-500.0,0.00013698,2]
[399330661,1766309439466,-500.0,0.00013698,2]
[399330662,1766309439475,-500.0,0.00013698,2]
[399330663,1766309439488,-500.0,0.00013698,2]
[399330664,1766309439497,-500.0,0.00013698,2]
[399330665,1766309439507,-500.0,0.00013698,2]
[399330666,1766309439516,-500.0,0.00013698,2]
[399330667,1766309439527,-500.0,0.00013698,2]
[399330668,1766309439536,-500.0,0.00013698,2]
[399330669,1766309439545,-500.0,0.00013698,2]
[399330670,1766309439555,-500.0,0.00013698,2]
[399330671,1766309439566,-500.0,0.00013698,2]
[399330672,1766309439577,-500.0,0.00013698,2]
[399330673,1766309439589,-500.0,0.00013698,2]
[399330674,1766309439598,-500.0,0.00013698,2]
[399330675,1766309439609,-500.0,0.00013698,2]
[399330676,1766309439622,-500.0,0.00013698,2]
[399330677,1766309439632,-500.0,0.00013698,2]
[399330678,1766309439642,-500.0,0.00013698,2]
[399330679,1766309439651,-500.0,0.00013698,2]
[399330680,1766309439661,-500.0,0.00013698,2]
[399330681,1766309439670,-500.0,0.00013698,2]
[399330682,1766309439680,-500.0,0.00013698,2]
[399330683,1766309439689,-500.0,0.00013698,2]
[399330684,1766309439699,-500.0,0.00013698,2]
[399330685,1766309439709,-500.0,0.00013698,2]
[399330686,1766309439719,-500.0,0.00013698,2]
[399330687,1766309439728,-500.0,0.00013698,2]
[399330688,1766309439737,-500.0,0.00013698,2]
[399330689,1766309439746,-500.0,0.00013698,2]
[399330690,1766309439755,-500.0,0.00013698,2]
[399330691,1766309439765,-500.0,0.00013698,2]
[399330692,1766309439774,-500.0,0.00013698,2]
[399330693,1766309439783,-500.0,0.00013698,2]
[399330694,1766309439792,-500.0,0.00013698,2]
[399330695,1766309439801,-500.0,0.00013698,2]
[399330696,1766309439811,-500.0,0.00013698,2]
[399330697,1766309439820,-500.0,0.00013698,2]
[399330698,1766309439829,-500.0,0.00013698,2]
[399330699,1766309439839,-500.0,0.00013698,2]
[399330700,1766309439849,-500.0,0.00013698,2]
[399330701,1766309439860,-500.0,0.00013698,2]
[399330702,1766309439870,-500.0,0.00013698,2]
[399330703,1766309439881,-500.0,0.00013698,2]
[399330704,1766309439891,-500.0,0.00013698,2]
[399330705,1766309439900,-500.0,0.00013698,2]
[399330706,1766309439910,-219.76976975,0.00013698,2]
[399330707,1766309439922,-166.66,0.00013699,2]
[399330708,1766309439931,-994.64,0.00013699,2]
[399330709,1766309439941,-449.0,0.00013699,2]